fUST/lending_fUST_20241114
["ID","MTS","AMOUNT","RATE_DAILY","PERIOD"]
[342166376,1731526238469,-2438.7772412,0.00022928,2]
[342166377,1731526238479,-587.0,0.00023004,2]
[342166378,1731526238490,-854.612733,0.00023224,2]
[342166379,1731526238499,-3026.8121208,0.00023294,2]
[342166380,1731526238509,-186.96175,0.00023302,2]
[342166381,1731526238519,-250.0,0.00023329,2]
[342166382,1731526238528,-548.31453866,0.00023351,2]
[342166383,1731526238538,-298.117,0.00023366,2]
[342166384,1731526238547,-471.086227,0.00023389,2]
[342166385,1731526238558,-587.0,0.00023446,2]
[342166386,1731526238568,-257.3623642,0.00023479,2]
[342166387,1731526238577,-854.612733,0.00023909,2]
[342166388,1731526238587,-548.31453866,0.00024707,2]
[342166389,1731526238596,-232.592,0.00024712,7]
[342166390,1731526238606,-169.579516,0.00024758,2]
[342166391,1731526238615,-300.0,0.00025,2]
[342166392,1731526238625,-270.2,0.00025,2]
[342166393,1731526238634,-157.0,0.00025,2]
[342166394,1731526238644,-823.0,0.00025065,2]
[342166395,1731526238653,-4023.37211808,0.0002509,2]
[342166396,1731526238663,-341.0,0.00025791,2]
[342166397,1731526238673,-157.0,0.0002589,2]
[342166398,1731526238682,-300.0,0.00026,2]
[342166399,1731526238691,-548.31453866,0.00026063,2]
[342166400,1731526238701,-500.62584288,0.00026685,7]
[342166401,1731526238710,-300.0,0.00027,2]
[342166402,1731526238719,-180.0,0.00027,2]
[342166403,1731526238729,-958.04634042,0.00027,7]
[342166404,1731526238739,-7102.17846879,0.00027024,2]
[342166405,1731526238748,-296.44,0.00027287,3]
[342166406,1731526238758,-889.36,0.00027287,3]
[342166407,1731526238768,-18313.73,0.0002729,10]
[342166408,1731526238777,-1000.0,0.00027297,2]
[342166409,1731526238888,-187.04559619,0.00027297,2]
[342166410,1731526238899,-500.0,0.00027299,2]
[342166411,1731526238909,-500.0,0.00027299,2]
[342166412,1731526238919,-500.0,0.00027299,2]
[342166413,1731526238928,-217.07063905,0.00027299,2]
[342166414,1731526238938,-500.0,0.00027299,2]
[342166415,1731526238947,-500.0,0.00027299,2]
[342166416,1731526238957,-500.0,0.00027299,2]
[342166417,1731526238967,-500.0,0.00027299,2]
[342166418,1731526238976,-487.35539382,0.00027299,2]
[342166419,1731526238985,-300.0,0.00027299,2]
[342166420,1731526238995,-500.0,0.00027299,2]
[342166421,1731526239004,-500.0,0.00027299,2]
[342166422,1731526239014,-500.0,0.00027299,2]
[342166423,1731526239024,-500.0,0.00027299,2]
[342166424,1731526239035,-250.0,0.00027299,2]
[342166425,1731526239045,-21976.48,0.000273,10]
[342166426,1731526239055,-1097.0,0.0002731,2]
[342166427,1731526239065,-592.88,0.00027353,3]
[342166428,1731526239074,-26371.77,0.00027356,10]
[342166429,1731526239084,-922.25,0.00027364,3]
[342166430,1731526239093,-7102.17846879,0.00027366,2]
[342166431,1731526239106,-500.0,0.00027373,2]
[342166432,1731526239118,-500.0,0.00027373,2]
[342166433,1731526239128,-514.1334172,0.00027373,2]
[342166434,1731526239137,-323.05032301,0.00027373,2]
[342166435,1731526239146,-226.72965119,0.00027373,2]
[342166436,1731526239156,-500.0,0.00027373,2]
[342166437,1731526239165,-501.48286692,0.00027373,2]
[342166438,1731526239174,-500.0,0.00027373,2]
[342166439,1731526239183,-501.63377348,0.00027373,2]
[342166440,1731526239192,-500.0,0.00027373,2]
[342166441,1731526239201,-500.34629178,0.00027373,2]
[342166443,1731526239210,-500.0,0.00027373,2]
[342166444,1731526239219,-500.0,0.00027373,2]
[342166445,1731526239229,-500.42886103,0.00027373,2]
[342166446,1731526239238,-372.67977275,0.00027373,2]
[342166447,1731526239247,-500.43429681,0.00027373,2]
[342166448,1731526239257,-500.0,0.00027373,2]
[342166449,1731526239266,-241.96200927,0.00027392,2]
[342166450,1731526239275,-650.21937955,0.00027392,2]
[342166451,1731526239285,-246.61900376,0.00027392,2]
[342166452,1731526239295,-540.53551886,0.00027392,2]
[342166453,1731526239304,-175.08658542,0.00027392,2]
[342166454,1731526239313,-262.39419188,0.00027392,2]
[342166455,1731526239322,-598.72783791,0.00027397,4]
[342166456,1731526239331,-297.34548916,0.00027397,4]
[342166458,1731526239341,-500.0,0.00027397,4]
[342166459,1731526239350,-500.0,0.00027397,4]
[342166461,1731526239359,-500.0,0.00027397,4]
[342166463,1731526239369,-500.0,0.00027397,4]
[342166465,1731526239378,-511.90335778,0.00027397,4]
[342166467,1731526239387,-500.0,0.00027397,4]
[342166469,1731526239397,-517.63415617,0.00027397,4]
[342166470,1731526239407,-151.98676507,0.00027397,4]
[342166471,1731526239416,-500.0,0.00027397,4]
[342166472,1731526239426,-500.0,0.00027397,4]
[342166473,1731526239435,-500.0,0.00027397,4]
[342166474,1731526239445,-500.0,0.00027397,4]
[342166475,1731526239455,-500.0,0.00027397,4]
[342166476,1731526239464,-505.14761893,0.00027397,4]
[342166477,1731526239473,-500.0,0.00027397,4]
[342166478,1731526239483,-231.32678462,0.00027397,4]
[342166479,1731526239492,-500.0,0.00027397,4]
[342166480,1731526239501,-500.0,0.00027397,4]
[342166481,1731526239511,-588.18088342,0.00027397,4]
[342166483,1731526239520,-509.28375157,0.00027397,4]
[342166485,1731526239529,-500.0,0.00027397,4]
[342166486,1731526239538,-500.0,0.00027397,4]
[342166488,1731526239548,-500.0,0.00027397,4]
[342166489,1731526239557,-500.0,0.00027397,4]
[342166490,1731526239567,-500.0,0.00027397,4]
[342166491,1731526239575,-500.0,0.00027397,4]
[342166492,1731526239585,-500.0,0.00027397,4]
[342166493,1731526239594,-500.0,0.00027397,4]
[342166495,1731526239604,-500.0,0.00027397,4]
[342166496,1731526239614,-500.0,0.00027397,4]
[342166498,1731526239623,-500.0,0.00027397,4]
[342166500,1731526239633,-500.0,0.00027397,4]
[342166501,1731526239642,-500.0,0.00027397,4]
[342166502,1731526239651,-500.0,0.00027397,4]
[342166503,1731526239660,-500.0,0.00027397,4]
[342166504,1731526239670,-500.0,0.00027397,4]
[342166505,1731526239679,-500.0,0.00027397,4]
[342166506,1731526239688,-500.0,0.00027397,4]
[342166507,1731526239697,-500.0,0.00027397,4]
[342166509,1731526239707,-500.0,0.00027397,4]
[342166510,1731526239715,-500.0,0.00027397,4]
[342166512,1731526239725,-560.84242202,0.00027397,4]
[342166514,1731526239734,-500.0,0.00027397,4]
[342166516,1731526239743,-500.0,0.00027397,4]
[342166518,1731526239752,-500.0,0.00027397,4]
[342166519,1731526239761,-500.0,0.00027397,4]
[342166520,1731526239770,-500.0,0.00027397,4]
[342166521,1731526239780,-503.29034906,0.00027397,4]
[342166522,1731526239789,-267.0425068,0.00027397,4]
[342166523,1731526239799,-500.0,0.00027397,4]
[342166524,1731526239808,-500.0,0.00027397,4]
[342166526,1731526239817,-500.0,0.00027397,4]
[342166528,1731526239827,-500.0,0.00027397,4]
[342166530,1731526239836,-200.0,0.00027397,4]
[342166531,1731526239845,-500.0,0.00027397,4]
[342166533,1731526239854,-500.0,0.00027397,4]
[342166535,1731526239864,-500.0,0.00027397,4]
[342166537,1731526239873,-500.0,0.00027397,4]
[342166538,1731526239882,-447.11459682,0.00027397,4]
[342166539,1731526239891,-500.0,0.00027397,4]
[342166540,1731526239900,-500.0,0.00027397,4]
[342166541,1731526239909,-523.30387489,0.00027397,4]
[342166542,1731526239918,-397.77730588,0.00027397,4]
[342166543,1731526239928,-500.0,0.00027397,4]
[342166544,1731526239937,-574.33759652,0.00027397,4]
[342166545,1731526239946,-500.0,0.00027397,4]
[342166546,1731526239955,-500.0,0.00027397,4]
[342166547,1731526239964,-343.06803304,0.00027397,4]
[342166548,1731526239973,-500.0,0.00027397,4]
[342166549,1731526239982,-500.0,0.00027397,4]
[342166550,1731526239991,-162.77806397,0.00027397,4]
[342166551,1731526239999,-500.0,0.00027397,4]
[342166552,1731526240008,-525.1208139,0.00027397,4]
[342166553,1731526240021,-500.0,0.00027397,4]
[342166554,1731526240030,-512.45716059,0.00027397,4]
[342166555,1731526240040,-500.0,0.00027397,4]
[342166556,1731526240049,-500.0,0.00027397,4]
[342166557,1731526240058,-500.0,0.00027397,4]
[342166558,1731526240068,-500.0,0.00027397,4]
[342166559,1731526240078,-500.0,0.00027397,4]
[342166560,1731526240087,-500.0,0.00027397,4]
[342166561,1731526240096,-500.0,0.00027397,4]
[342166562,1731526240106,-558.89,0.00027397,4]
[342166563,1731526240115,-452.29748454,0.00027397,4]
[342166564,1731526240124,-500.0,0.00027397,4]
[342166565,1731526240133,-507.24173528,0.00027397,4]
[342166566,1731526240142,-500.0,0.00027397,4]
[342166567,1731526240151,-1000.0,0.00027397,2]
[342166568,1731526240160,-200.52067939,0.00027397,4]
[342166569,1731526240169,-500.0,0.00027397,4]
[342166570,1731526240179,-500.0,0.00027397,4]
[342166571,1731526240188,-500.0,0.00027397,4]
[342166572,1731526240198,-500.0,0.00027397,4]
[342166573,1731526240207,-500.0,0.00027397,4]
[342166574,1731526240217,-500.0,0.00027397,4]
[342166575,1731526240227,-500.0,0.00027397,4]
[342166576,1731526240236,-234.94245814,0.00027397,4]
[342166577,1731526240246,-500.0,0.00027397,4]
[342166578,1731526240255,-276.96922359,0.00027397,4]
[342166579,1731526240264,-500.0,0.00027397,4]
[342166580,1731526240274,-500.0,0.00027397,4]
[342166581,1731526240283,-500.0,0.00027397,4]
[342166582,1731526240293,-576.18002007,0.00027397,4]
[342166583,1731526240302,-500.0,0.00027397,4]
[342166584,1731526240311,-491.13386687,0.00027397,4]
[342166585,1731526240320,-500.0,0.00027397,4]
[342166586,1731526240329,-500.0,0.00027397,4]
[342166587,1731526240338,-500.0,0.00027397,4]
[342166588,1731526240350,-500.0,0.00027397,4]
[342166589,1731526240359,-500.0,0.00027397,4]
[342166590,1731526240368,-500.0,0.00027397,4]
[342166591,1731526240377,-500.0,0.00027397,4]
[342166592,1731526240386,-500.0,0.00027397,4]
[342166593,1731526240395,-500.0,0.00027397,4]
[342166594,1731526240405,-500.0,0.00027397,4]
[342166595,1731526240414,-500.0,0.00027397,4]
[342166596,1731526240424,-500.0,0.00027397,4]
[342166597,1731526240434,-500.0,0.00027397,4]
[342166598,1731526240442,-466.7782455,0.00027397,4]
[342166599,1731526240452,-500.0,0.00027397,4]
[342166600,1731526240461,-500.0,0.00027397,4]
[342166601,1731526240470,-500.0,0.00027397,4]
[342166602,1731526240479,-508.34429206,0.00027397,4]
[342166603,1731526240489,-500.0,0.00027397,4]
[342166604,1731526240498,-555.66,0.00027397,4]
[342166605,1731526240507,-500.0,0.00027397,4]
[342166606,1731526240516,-500.0,0.00027397,4]
[342166607,1731526240525,-500.0,0.00027397,4]
[342166608,1731526240535,-500.0,0.00027397,4]
[342166609,1731526240544,-500.0,0.00027397,4]
[342166610,1731526240553,-500.0,0.00027397,4]
[342166611,1731526240562,-500.0,0.00027397,4]
[342166612,1731526240571,-500.0,0.00027397,4]
[342166613,1731526240580,-500.0,0.00027397,4]
[342166614,1731526240589,-500.0,0.00027397,4]
[342166615,1731526240598,-500.0,0.00027397,4]
[342166616,1731526240607,-500.0,0.00027397,4]
[342166617,1731526240616,-500.0,0.00027397,4]
[342166618,1731526240625,-500.0,0.00027397,4]
[342166619,1731526240634,-530.48533411,0.00027397,4]
[342166620,1731526240643,-500.0,0.00027397,4]
[342166621,1731526240651,-500.0,0.00027397,4]
[342166622,1731526240661,-500.0,0.00027397,4]
[342166623,1731526240670,-500.0,0.00027397,4]
[342166624,1731526240679,-500.0,0.00027397,4]
[342166625,1731526240688,-501.49272279,0.00027397,4]
[342166626,1731526240697,-500.0,0.00027397,4]
[342166627,1731526240706,-500.0,0.00027397,4]
[342166628,1731526240715,-500.0,0.00027397,4]
[342166629,1731526240724,-500.0,0.00027397,4]
[342166630,1731526240733,-500.0,0.00027397,4]
[342166631,1731526240742,-500.0,0.00027397,2]
[342166632,1731526240751,-500.0,0.00027397,4]
[342166633,1731526240761,-500.0,0.00027397,4]
[342166634,1731526240770,-500.0,0.00027397,4]
[342166635,1731526240779,-500.0,0.00027397,4]
[342166636,1731526240788,-500.0,0.00027397,4]
[342166637,1731526240797,-511.07489608,0.00027397,4]
[342166638,1731526240807,-500.0,0.00027397,4]
[342166639,1731526240816,-500.0,0.00027397,4]
[342166640,1731526240825,-500.0,0.00027397,4]
[342166641,1731526240835,-504.97643394,0.00027397,4]
[342166642,1731526240844,-500.0,0.00027397,4]
[342166643,1731526240854,-500.0,0.00027397,4]
[342166644,1731526240863,-500.0,0.00027397,4]
[342166645,1731526240872,-158.01943536,0.00027397,4]
[342166646,1731526240881,-500.0,0.00027397,4]
[342166647,1731526240891,-500.0,0.00027397,4]
[342166648,1731526240901,-500.0,0.00027397,4]
[342166649,1731526240910,-500.0,0.00027397,4]
[342166650,1731526240920,-500.0,0.00027397,4]
[342166651,1731526240929,-500.0,0.00027397,4]
[342166652,1731526240938,-500.0,0.00027397,4]
[342166653,1731526240948,-500.0,0.00027397,4]
[342166654,1731526240957,-500.0,0.00027397,4]
[342166655,1731526240966,-500.0,0.00027397,4]
[342166656,1731526240976,-500.0,0.00027397,4]
[342166657,1731526240985,-500.0,0.00027397,4]
[342166658,1731526240995,-500.0,0.00027397,4]
[342166659,1731526241004,-500.0,0.00027397,4]
[342166660,1731526241014,-500.0,0.00027397,4]
[342166661,1731526241025,-520.23258477,0.00027397,4]
[342166662,1731526241036,-500.0,0.00027397,4]
[342166663,1731526241045,-559.73009298,0.00027397,4]
[342166664,1731526241055,-500.0,0.00027397,4]
[342166665,1731526241064,-500.0,0.00027397,4]
[342166666,1731526241074,-500.0,0.00027397,4]
[342166667,1731526241083,-247.77242902,0.00027397,4]
[342166668,1731526241092,-418.39695709,0.00027397,4]
[342166669,1731526241103,-500.0,0.00027397,4]
[342166670,1731526241112,-500.0,0.00027397,4]
[342166671,1731526241121,-500.0,0.00027397,4]
[342166672,1731526241130,-500.0,0.00027397,4]
[342166673,1731526241139,-500.0,0.00027397,4]
[342166674,1731526241149,-500.0,0.00027397,4]
[342166675,1731526241159,-500.0,0.00027397,4]
[342166676,1731526241168,-500.0,0.00027397,4]
[342166677,1731526241178,-500.0,0.00027397,4]
[342166678,1731526241187,-507.91218811,0.00027397,4]
[342166679,1731526241197,-500.0,0.00027397,4]
[342166680,1731526241206,-500.0,0.00027397,4]
[342166681,1731526241215,-500.0,0.00027397,4]
[342166682,1731526241225,-502.39337814,0.00027397,4]
[342166683,1731526241234,-500.0,0.00027397,4]
[342166684,1731526241244,-500.0,0.00027397,4]
[342166685,1731526241253,-500.0,0.00027397,4]
[342166686,1731526241262,-500.0,0.00027397,4]
[342166687,1731526241272,-500.0,0.00027397,4]
[342166688,1731526241281,-500.0,0.00027397,4]
[342166689,1731526241291,-500.0,0.00027397,4]
[342166690,1731526241300,-2336.0,0.00027397,2]
[342166691,1731526241310,-500.0,0.00027397,4]
[342166692,1731526241320,-453.88348648,0.00027397,4]
[342166693,1731526241329,-500.0,0.00027397,4]
[342166694,1731526241338,-500.0,0.00027397,4]
[342166695,1731526241348,-500.0,0.00027397,4]
[342166696,1731526241357,-500.0,0.00027397,4]
[342166697,1731526241367,-500.0,0.00027397,4]
[342166698,1731526241476,-500.0,0.00027397,4]
[342166699,1731526241497,-500.0,0.00027397,4]
[342166700,1731526241507,-508.56920437,0.00027397,4]
[342166701,1731526241516,-500.0,0.00027397,4]
[342166702,1731526241526,-500.0,0.00027397,4]
[342166703,1731526241535,-500.0,0.00027397,4]
[342166704,1731526241545,-500.0,0.00027397,4]
[342166705,1731526241554,-500.0,0.00027397,4]
[342166706,1731526241564,-500.0,0.00027397,4]
[342166707,1731526241573,-500.0,0.00027397,4]
[342166708,1731526241582,-590.70882927,0.00027397,4]
[342166709,1731526241591,-500.0,0.00027397,4]
[342166710,1731526241600,-500.0,0.00027397,4]
[342166711,1731526241610,-820.13,0.00027397,4]
[342166712,1731526241619,-500.0,0.00027397,4]
[342166713,1731526241628,-500.0,0.00027397,4]
[342166714,1731526241637,-500.0,0.00027397,4]
[342166715,1731526241646,-500.0,0.00027397,4]
[342166716,1731526241656,-500.0,0.00027397,2]
[342166717,1731526241664,-517.23955856,0.00027397,4]
[342166718,1731526241673,-500.0,0.00027397,4]
[342166719,1731526241682,-500.0,0.00027397,4]
[342166720,1731526241691,-500.0,0.00027397,4]
[342166721,1731526241700,-500.0,0.00027397,4]
[342166722,1731526241709,-500.0,0.00027397,4]
[342166723,1731526241718,-500.0,0.00027397,4]
[342166724,1731526241727,-500.0,0.00027397,4]
[342166725,1731526241737,-502.92649374,0.00027397,4]
[342166726,1731526241746,-500.0,0.00027397,4]
[342166727,1731526241755,-500.0,0.00027397,4]
[342166728,1731526241765,-500.0,0.00027397,4]
[342166729,1731526241774,-500.0,0.00027397,4]
[342166730,1731526241783,-500.0,0.00027397,4]
[342166731,1731526241791,-500.0,0.00027397,4]
[342166732,1731526241800,-500.0,0.00027397,4]
[342166733,1731526241809,-502.06,0.00027397,4]
[342166734,1731526241818,-500.0,0.00027397,4]
[342166735,1731526241828,-500.0,0.00027397,4]
[342166736,1731526241837,-500.0,0.00027397,4]
[342166737,1731526241846,-500.0,0.00027397,4]
[342166738,1731526241856,-269.4482999,0.00027397,4]
[342166739,1731526241865,-1057.41,0.00027397,4]
[342166740,1731526241874,-500.0,0.00027397,4]
[342166741,1731526241896,-500.0,0.00027397,4]
[342166742,1731526241907,-588.99,0.00027397,4]
[342166743,1731526241916,-500.0,0.00027397,4]
[342166744,1731526241926,-500.0,0.00027397,4]
[342166745,1731526241935,-500.0,0.00027397,4]
[342166746,1731526241946,-500.0,0.00027397,4]
[342166747,1731526241955,-500.0,0.00027397,4]
[342166748,1731526241965,-500.0,0.00027397,4]
[342166749,1731526241974,-500.0,0.00027397,4]
[342166750,1731526241983,-500.0,0.00027397,4]
[342166751,1731526241992,-501.52584224,0.00027397,4]
[342166752,1731526242001,-824.32,0.00027397,4]
[342166753,1731526242011,-500.0,0.00027397,4]
[342166754,1731526242020,-500.0,0.00027397,4]
[342166755,1731526242034,-500.0,0.00027397,4]
[342166756,1731526242043,-500.0,0.00027397,4]
[342166757,1731526242052,-500.0,0.00027397,4]
[342166758,1731526242061,-500.83473165,0.00027397,4]
[342166759,1731526242072,-501.32163251,0.00027397,4]
[342166760,1731526242082,-500.0,0.00027397,4]
[342166761,1731526242091,-500.0,0.00027397,4]
[342166762,1731526242101,-500.0,0.00027397,4]
[342166763,1731526242112,-500.0,0.00027397,4]
[342166764,1731526242122,-500.0,0.00027397,4]
[342166765,1731526242131,-500.0,0.00027397,4]
[342166766,1731526242141,-500.0,0.00027397,4]
[342166767,1731526242150,-500.0,0.00027397,4]
[342166768,1731526242160,-151.0,0.00027397,7]
[342166769,1731526242170,-358.89066505,0.00027397,4]
[342166770,1731526242179,-6037.87,0.00027397,4]
[342166771,1731526242189,-503.72256543,0.00027397,4]
[342166772,1731526242199,-500.0,0.00027397,4]
[342166773,1731526242209,-500.0,0.00027397,4]
[342166774,1731526242219,-500.0,0.00027397,4]
[342166775,1731526242228,-500.0,0.00027397,4]
[342166776,1731526242237,-232.00707,0.00027397,7]
[342166777,1731526242247,-407.48717464,0.00027397,4]
[342166778,1731526242257,-500.0,0.00027397,4]
[342166779,1731526242266,-500.0,0.00027397,4]
[342166780,1731526242275,-151.0,0.00027397,7]
[342166781,1731526242284,-500.0,0.00027397,4]
[342166782,1731526242293,-500.0,0.00027397,4]
[342166783,1731526242302,-500.0,0.00027397,4]
[342166784,1731526242312,-500.0,0.00027397,4]
[342166785,1731526242321,-500.0,0.00027397,4]
[342166786,1731526242331,-500.0,0.00027397,4]
[342166787,1731526242340,-501.40428144,0.00027397,4]
[342166788,1731526242349,-500.0,0.00027397,4]
[342166790,1731526242360,-500.0,0.00027397,4]
[342166791,1731526242369,-500.0,0.00027397,4]
[342166793,1731526242379,-500.0,0.00027397,4]
[342166795,1731526242394,-500.0,0.00027397,4]
[342166796,1731526242412,-500.0,0.00027397,4]
[342166797,1731526242422,-500.0,0.00027397,4]
[342166798,1731526242432,-500.0,0.00027397,4]
[342166799,1731526242441,-573.82,0.00027397,4]
[342166800,1731526242450,-500.0,0.00027397,4]
[342166801,1731526242460,-500.0,0.00027397,4]
[342166802,1731526242469,-500.0,0.00027397,4]
[342166804,1731526242479,-500.0,0.00027397,4]
[342166805,1731526242488,-500.0,0.00027397,4]
[342166806,1731526242498,-500.0,0.00027397,4]
[342166807,1731526242507,-500.0,0.00027397,4]
[342166809,1731526242516,-500.0,0.00027397,4]
[342166811,1731526242526,-151.0,0.00027397,7]
[342166813,1731526242536,-500.0,0.00027397,4]
[342166815,1731526242546,-500.0,0.00027397,4]
[342166816,1731526242555,-500.0,0.00027397,4]
[342166817,1731526242564,-500.0,0.00027397,4]
[342166818,1731526242574,-500.0,0.00027397,4]
[342166819,1731526242583,-500.0,0.00027397,4]
[342166820,1731526242593,-500.0,0.00027397,4]
[342166821,1731526242603,-500.0,0.00027397,4]
[342166822,1731526242612,-500.0,0.00027397,4]
[342166823,1731526242621,-500.0,0.00027397,4]
[342166825,1731526242631,-500.0,0.00027397,4]
[342166827,1731526242640,-500.0,0.00027397,4]
[342166829,1731526242649,-500.0,0.00027397,4]
[342166831,1731526242659,-151.0,0.00027397,7]
[342166832,1731526242669,-423.15898202,0.00027397,4]
[342166833,1731526242678,-500.0,0.00027397,4]
[342166834,1731526242688,-323.1958462,0.00027397,4]
[342166835,1731526242698,-500.0,0.00027397,4]
[342166836,1731526242708,-500.0,0.00027397,4]
[342166838,1731526242718,-500.0,0.00027397,4]
[342166840,1731526242728,-500.0,0.00027397,4]
[342166841,1731526242738,-500.0,0.00027397,4]
[342166842,1731526242747,-429.87334161,0.00027397,4]
[342166843,1731526242757,-509.72254863,0.00027397,4]
[342166844,1731526242767,-500.0,0.00027397,4]
[342166845,1731526242776,-500.0,0.00027397,4]
[342166846,1731526242787,-500.0,0.00027397,4]
[342166847,1731526242796,-502.62562,0.00027397,4]
[342166848,1731526242806,-1427.68,0.00027397,4]
[342166850,1731526242816,-1132.73,0.00027397,4]
[342166852,1731526242825,-500.0,0.00027397,4]
[342166854,1731526242836,-500.45554005,0.00027397,4]
[342166856,1731526242845,-508.15460528,0.00027397,4]
[342166858,1731526242855,-504.73194367,0.00027397,4]
[342166859,1731526242864,-500.0,0.00027397,4]
[342166860,1731526242874,-151.0,0.00027397,7]
[342166861,1731526242884,-500.0,0.00027397,4]
[342166862,1731526242908,-500.0,0.00027397,4]
[342166864,1731526242918,-500.0,0.00027397,4]
[342166866,1731526242927,-500.0,0.00027397,4]
[342166867,1731526242937,-500.0,0.00027397,4]
[342166868,1731526242946,-500.0,0.00027397,4]
[342166869,1731526242955,-521.76488773,0.00027397,4]
[342166870,1731526242964,-510.40503672,0.00027397,4]
[342166871,1731526242974,-500.0,0.00027397,4]
[342166872,1731526242983,-500.0,0.00027397,4]
[342166873,1731526242992,-1129.15,0.00027397,4]
[342166874,1731526243001,-511.98752116,0.00027397,4]
[342166875,1731526243011,-529.54594108,0.00027397,4]
[342166876,1731526243028,-500.0,0.00027397,4]
[342166877,1731526243038,-500.0,0.00027397,4]
[342166878,1731526243048,-503.34578844,0.00027397,4]
[342166879,1731526243057,-500.0,0.00027397,4]
[342166880,1731526243067,-500.0,0.00027397,4]
[342166881,1731526243076,-500.0,0.00027397,4]
[342166882,1731526243086,-500.0,0.00027397,4]
[342166883,1731526243095,-500.0,0.00027397,4]
[342166884,1731526243109,-151.0,0.00027397,7]
[342166885,1731526243119,-500.0,0.00027397,4]
[342166886,1731526243129,-500.0,0.00027397,4]
[342166887,1731526243146,-500.0,0.00027397,4]
[342166888,1731526243158,-500.0,0.00027397,4]
[342166889,1731526243167,-500.0,0.00027397,4]
[342166890,1731526243177,-1508.7,0.00027397,4]
[342166891,1731526243186,-500.0,0.00027397,4]
[342166892,1731526243195,-648.03,0.00027397,4]
[342166893,1731526243204,-500.0,0.00027397,4]
[342166894,1731526243213,-500.0,0.00027397,4]
[342166895,1731526243222,-500.0,0.00027397,4]
[342166896,1731526243231,-500.0,0.00027397,4]
[342166897,1731526243241,-502.43502232,0.00027397,4]
[342166898,1731526243251,-295.37666053,0.00027397,4]
[342166899,1731526243260,-517.5,0.00027397,4]
[342166900,1731526243269,-500.0,0.00027397,4]
[342166901,1731526243278,-500.0,0.00027397,4]
[342166902,1731526243287,-430.6415851,0.00027397,4]
[342166903,1731526243295,-500.0,0.00027397,4]
[342166905,1731526243305,-500.0,0.00027397,4]
[342166906,1731526243314,-500.0,0.00027397,4]
[342166907,1731526243323,-500.0,0.00027397,4]
[342166908,1731526243333,-500.0,0.00027397,4]
[342166909,1731526243342,-500.0,0.00027397,4]
[342166911,1731526243351,-500.0,0.00027397,4]
[342166912,1731526243362,-500.0,0.00027397,4]
[342166913,1731526243372,-500.0,0.00027397,4]
[342166914,1731526243382,-233.99417943,0.00027397,4]
[342166915,1731526243403,-1063.18,0.00027397,4]
[342166916,1731526243412,-500.0,0.00027397,4]
[342166917,1731526243422,-500.60088358,0.00027397,4]
[342166918,1731526243431,-500.0,0.00027397,4]
[342166919,1731526243441,-500.0,0.00027397,4]
[342166920,1731526243450,-500.0,0.00027397,4]
[342166921,1731526243460,-500.0,0.00027397,4]
[342166922,1731526243470,-500.0,0.00027397,4]